{"text_format":"1","workbook":"xlsx","n_sheets":2,"sheets":["訂購單 ","團購明細表"],"not_rendered":{"charts":0,"images":1,"macros":1,"external_links":0,"defined_names":2,"comments":0,"pivot_tables":0},"unopened":[],"bounds":{"document_bytes":16777216,"sheet_cells":100000,"rows_first":2000,"rows_last":500,"rows_between":2000,"halvings":0,"cell_chars":16384,"cell_head_chars":4096},"cells_cut":0,"cells_raw":0,"read":"whole","date_system":"1900"}

{"sheet":"訂購單 ","index":0,"n_rows":86,"n_cols":21,"rows_kept":86,"cut":false,"hidden":false,"merged":[[76,0,76,1],[9,4,12,9],[35,10,35,16],[33,10,33,16],[58,10,58,16],[34,10,34,16],[15,16,15,17],[26,10,26,16],[40,3,40,9],[35,3,35,9],[26,3,26,9],[44,3,44,9],[33,3,33,9],[21,3,21,9],[17,13,17,14],[36,3,36,9],[18,0,18,20],[25,3,25,9],[31,10,31,16],[25,10,25,16],[32,10,32,16],[55,3,55,9],[21,0,45,1],[46,0,66,1],[68,10,68,16],[68,3,68,9],[62,10,62,16],[52,3,52,9],[58,3,58,9],[56,3,56,9],[57,3,57,9],[53,3,53,9],[60,3,60,9],[59,3,59,9],[66,10,66,16],[67,10,67,16],[65,3,65,9],[61,3,61,9],[62,3,62,9],[64,3,64,9],[67,3,67,9],[59,10,59,16],[65,10,65,16],[66,3,66,9],[63,3,63,9],[67,0,75,1],[0,0,0,20],[21,10,21,16],[22,10,22,16],[23,10,23,16],[24,10,24,16],[15,18,15,20],[16,15,16,20],[17,16,17,17],[17,18,17,20],[24,3,24,9],[16,13,16,14],[17,4,17,8],[20,3,20,16],[15,9,15,10],[15,5,15,6],[16,3,16,12],[15,13,15,15],[15,11,15,12],[15,7,15,8],[17,0,17,2],[16,0,16,2],[14,0,14,20],[9,1,12,3],[17,10,17,12],[72,3,72,9],[72,10,72,16],[51,3,51,9],[49,3,49,9],[44,10,44,16],[38,3,38,9],[31,3,31,9],[28,10,28,16],[27,3,27,9],[29,3,29,9],[39,3,39,9],[29,10,29,16],[37,3,37,9],[30,3,30,9],[52,10,52,16],[55,10,55,16],[61,10,61,16],[64,10,64,16],[54,3,54,9],[49,10,49,16],[48,3,48,9],[60,10,60,16],[63,10,63,16],[36,10,36,16],[43,10,43,16],[50,3,50,9],[57,10,57,16],[51,10,51,16],[56,10,56,16],[45,10,45,16],[48,10,48,16],[46,10,46,16],[47,3,47,9],[47,10,47,16],[45,3,45,9],[53,10,53,16],[50,10,50,16],[54,10,54,16],[85,0,91,20],[84,0,84,20],[83,18,83,20],[83,0,83,17],[69,10,69,16],[76,10,76,16],[70,10,70,16],[76,3,76,9],[79,10,79,16],[80,3,80,9],[80,10,80,16],[78,10,78,16],[79,3,79,9],[78,3,78,9],[69,3,69,9],[70,3,70,9],[71,3,71,9],[71,10,71,16],[82,0,82,18],[77,3,77,9],[77,10,77,16],[81,3,81,18],[73,3,73,9],[73,10,73,16],[75,3,75,9],[75,10,75,16],[15,0,15,2],[30,10,30,16],[28,3,28,9],[34,3,34,9],[15,3,15,4],[46,3,46,9],[37,10,37,16],[42,10,42,16],[43,3,43,9],[39,10,39,16],[41,10,41,16],[23,3,23,9],[38,10,38,16],[22,3,22,9],[32,3,32,9],[27,10,27,16],[20,0,20,1],[74,3,74,9],[74,10,74,16],[40,10,40,16],[41,3,41,9],[42,3,42,9]]}
["【2024-12 毛寶兔宅配網冬特賣】訂購單  (活動期間 2024/12/03~2025/01/09 止) "]
[]
["-活動辦法：單筆訂單滿2000元免運費，未滿2000元另加100元運費。離島、外島、部分偏遠地區恕不配送；訂單成立2~7個工作天內出貨"]
["-送貨期間：2024/12/04~2025/01/18 週一至週五；2025/1/18(六)是最後一個週六送貨日(預購品除外)"]
["-付款方式：1)信用卡付款 2)ATM轉帳 3)貨到付款(電話、傳真訂購僅限貨到付款) 4)Line Pay 5)街口支付 6)台灣Pay 7)悠遊付 8)全支付"]
["-活動說明：單筆訂單限送貨一個地點；貨到付款者請備妥正確貨款交由送貨人員，恕不找零"]
["[註] 週日不配送，若不方便收貨可直接與司機另約配送時間。「網路下單」獨享購物金，出貨後7天統一發放。"]
[]
[]
[null,"訂購方式",null,null,"★網站訂購 www.maobao2.com.tw\n★投單信箱 service@info.maobao2.com.tw\n★電話訂購 0800-266-199\n   (週一~週五9:00-12:30、13:30-17:30)\n★傳真訂購 02-8976-2715 (10分鐘後請來電確認)"]
[]
[]
[]
[]
["訂購人資料 *為必填欄位"]
["*姓名",null,null,null,null,"□小姐   □先生",null,"*主要聯絡方式",null,"□市話  □手機",null,"*市話",null,null,null,null,"*手機 "]
["*住址",null,null,null,null,null,null,null,null,null,null,null,null,"*email"]
["公司戶\n發票",null,null,"公司抬頭",null,null,null,null,null,"統一編號",null,null,null,"配達時段",null,"□平日到貨","□週六到貨",null,"※配達時段相關說明詳見\n注意事項"]
["*如須換開發票，需辦理退貨訂單取消重新下單。　　*訂單成立後及商品配送前1~2日，以email通知。須填寫手機、市話，無法聯繫即取消訂單。"]
[]
["系列",null,"項次","商品名稱",null,null,null,null,null,null,null,null,null,null,null,null,null,"市價","特價","數量","金額"]
["衣物清潔系列",null,1,"【毛寶兔】超天然小蘇打植物2倍濃縮洗衣精1000g x1瓶+ 800g-補充包 x9包 贈毛寶兔鑰匙圈 x1",null,null,null,null,null,null,"★年度熱銷Top1 ★嬰幼兒衣物適用  ★食用級小蘇打添加 ",null,null,null,null,null,null,2040,999,{"$f":"團購明細表!AH6","v":0},{"$f":"S22*T22","v":0}]
[null,null,2,"【毛寶兔】超天然小蘇打植物2倍濃縮洗衣精1000g x1+800g x2 + 超天然小蘇打活氧殺菌漂白素330g x1",null,null,null,null,null,null,"★嬰幼兒衣物適用 ★食用級小蘇打添加 ★低泡省水\n★蛋白分解酵素配方、有效去污   ",null,null,null,null,null,null,690,459,{"$f":"團購明細表!AH7","v":0},{"$f":"S23*T23","v":0}]
[null,null,3,"【毛寶兔】超天然小蘇打植物2倍濃縮洗衣精5020g x2 贈毛寶兔洗衣袋 x1",null,null,null,null,null,null,"★嬰幼兒衣物適用 ★食用級小蘇打添加 ★低泡省水                                                                 ",null,null,null,null,null,null,1799,999,{"$f":"團購明細表!AH8","v":0},0]
[null,null,4,"【毛寶兔】超酵素制臭抗菌防霉洗衣精2000g x1 +1800g補充包 x6 贈毛寶小蘇打植萃香氛洗衣皂晶球5顆 x1",null,null,null,null,null,null,"★日本研發去味因子 ★蛋白分解酵素 ★有效防霉及去除汗臭   ★SGS檢驗抑菌率>99.9％",null,null,null,null,null,null,1222,749,{"$f":"團購明細表!AH9","v":0},0]
[null,null,5,"【毛寶】葳香抗菌洗衣精-2X酵素植淨5020g x2 贈毛寶制臭抗菌織物清新噴霧-瞬效除皺250g x1",null,null,null,null,null,null,"★99.99%有效洗淨冠狀病毒 ★2X濃縮大規格 使用更持久\n★究極制菌力3重特濃複配，制菌率>99.9% ",null,null,null,null,null,null,2018,1099,{"$f":"團購明細表!AH10","v":0},0]
[null,null,6,"【毛寶】小蘇打植萃香氛洗衣皂晶球-防螨抗菌25顆 x1 + 除霉抗菌25顆 x1 贈毛寶粉領精-多重酵素衣物去漬劑30g x1",null,null,null,null,null,null,"★毛寶小蘇打+植萃液體皂，打造天然潔淨力！\n★3D香氛晶球，48小時持久留香 ★制菌率>99.9% ",null,null,null,null,null,null,769,299,{"$f":"團購明細表!AH11","v":0},0]
[null,null,7,"【毛寶】PM2.5除霉防蟎抗菌洗衣精_洗淨病毒2200g x2 + 天然植萃抗菌洗衣精_洗淨病毒2200g x2 + 制臭極淨抗菌洗衣精_洗淨病毒2200g x2 贈毛寶兔活氧酵素洗衣槽去污劑250g(柑橘清香)-效期至2025/4 x2",null,null,null,null,null,null,"★99.9%有效洗淨冠狀病毒  ★日本研發V型潔淨因子 ★深入清潔避免二手PM2.5",null,null,null,null,null,null,1200,594,{"$f":"團購明細表!AH12","v":0},0]
[null,null,8,"【毛寶S】抗菌防霉洗衣精20kg x4 贈油嘴專用套管 x1 + 毛寶小蘇打洗碗精1000g(甜橙茶氛) x1",null,null,null,null,null,null,"★毛寶S家庭號20公斤桶裝，大家庭、店家使用，經濟實惠     ★中性溫和配方，不含螢光劑，不傷肌膚及衣料",null,null,null,null,null,null,4958,2400,{"$f":"團購明細表!AH13","v":0},0]
[null,null,9,"【毛寶S】酵素香氛洗衣精20kg x4 贈油嘴專用套管 x1 + 毛寶小蘇打洗碗精1000g(甜橙茶氛) x1",null,null,null,null,null,null,"★毛寶S家庭號20公斤桶裝，大家庭、店家使用，經濟實惠    ★調香師調配專屬晨曦玫瑰香氛，宛如漫步於玫瑰花園",null,null,null,null,null,null,6158,2400,{"$f":"團購明細表!AH14","v":0},0]
[null,null,10,"【毛寶S】抗菌防霉洗衣精20kg x10 贈油嘴專用套管 x3 + 毛寶S強效潔淨洗碗精4kg (清香柑橘) x1",null,null,null,null,null,null,"★毛寶S家庭號20公斤桶裝，大家庭、店家使用，經濟實惠    ★中性溫和配方，不含螢光劑，不傷肌膚及衣料",null,null,null,null,null,null,12367,6000,{"$f":"團購明細表!AH15","v":0},0]
[null,null,11,"【毛寶S】高效濃縮抗菌防霉洗衣精10kg x2 贈毛寶小蘇打洗碗精1000g(甜橙茶氛) x1 ",null,null,null,null,null,null,"★全新高效濃縮配方，用量減半，洗淨效果再升級                 ★獨特抗菌防霉配方 ★高效解垢，瓦解難洗污垢",null,null,null,null,null,null,2279,1200,{"$f":"團購明細表!AH16","v":0},0]
[null,null,12,"【毛寶S】高效濃縮酵素香氛洗衣精10kg x2 贈毛寶小蘇打洗碗精1000g(甜橙茶氛) x1",null,null,null,null,null,null,"★全新高效濃縮配方，用量減半，洗淨效果再升級                 ★導入蛋白活性酵素，強化污垢深層分解",null,null,null,null,null,null,2679,1200,{"$f":"團購明細表!AH17","v":0},0]
[null,null,13,"【毛寶S】溫暖日光柔軟精20kg x2 贈油嘴專用套管 x1",null,null,null,null,null,null,"★SGS檢驗不含四大重金屬 ★柔軟配方，預防纖維毛球                                ",null,null,null,null,null,null,2039,1100,{"$f":"團購明細表!AH18","v":0},0]
[null,null,14,"【毛寶】貼身衣物手洗精1000g-玫瑰天竺葵 x1 + 果漾西西里 x1",null,null,null,null,null,null,"★深度抗菌99.9% ★專屬女性植萃香氛，貼身衣物專用           ★中性溫和配方，植物系洗淨成分，輕鬆洗滌不傷手",null,null,null,null,null,null,278,188,{"$f":"團購明細表!AH19","v":0},0]
[null,null,15,"【毛寶】環保冷洗精2800g x1 +毛寶環保冷洗精2000g-補充包 x1",null,null,null,null,null,null,"★深度護纖技術 守護衣物不變形\n★99.9%天然抗菌力 抑制臭味生成",null,null,null,null,null,null,508,399,{"$f":"團購明細表!AH20","v":0},0]
[null,null,16,"【毛寶】X-sport 專業運動酵素洗衣精500g-沁檸白麝香 x1 + 玫瑰香柏 x1",null,null,null,null,null,null,"★專為運動衣物研發 ★FEVO織物進化技術新革命 \n★毛寶獨家研發潔淨技術，年度最強洗淨力",null,null,null,null,null,null,1198,799,{"$f":"團購明細表!AH21","v":0},0]
[null,null,17,"【毛寶】粉領精-多重酵素衣物去漬劑500g x3 ",null,null,null,null,null,null,"★噴等洗，輕鬆三步驟還給衣物一個清白 \n★野玫香檸 粉領族專屬香氣",null,null,null,null,null,null,654,327,{"$f":"團購明細表!AH22","v":0},0]
[null,null,18,"【毛寶兔】超酵素衣領衣物去漬劑500g-噴槍瓶 x2",null,null,null,null,null,null,"★嬰幼兒衣物適用 ★蛋白分解酵素配方、有效去污                        ",null,null,null,null,null,null,300,199,{"$f":"團購明細表!AH23","v":0},0]
[null,null,19,"【毛寶兔】超酵素衣領衣物去漬劑2000g-補充瓶 x2 贈500g噴槍瓶 x1",null,null,null,null,null,null,"★嬰幼兒衣物適用 ★蛋白分解酵素配方、有效去污                        ",null,null,null,null,null,null,750,470,{"$f":"團購明細表!AH24","v":0},0]
[null,null,20,"【毛寶兔】超複合酵素衣物去漬凝膠250g x2",null,null,null,null,null,null,"★精粹3種酵素之獨家配方 ★神奇魔刷，深入纖維分解頑垢         ",null,null,null,null,null,null,450,198,{"$f":"團購明細表!AH25","v":0},0]
[null,null,21,"【毛寶】葳香衣物柔軟精-花香3200g x1 + 1900g-補充包 x2",null,null,null,null,null,null,"★特殊柔軟劑，洗後讓衣物柔軟有彈性                                   \n★可防灰塵、防靜電，衣物洗後持續散發天然花香",null,null,null,null,null,null,315,229,{"$f":"團購明細表!AH26","v":0},0]
[null,null,22,"【毛寶】葳香衣物柔軟精-防霉3200g x1 + 1900g-補充包 x2",null,null,null,null,null,null,"★特殊柔軟劑，洗後讓衣物柔軟有彈性                                   \n★可防灰塵、防靜電，讓衣物洗後散發陽光曬後暖暖的香味",null,null,null,null,null,null,315,229,{"$f":"團購明細表!AH27","v":0},0]
[null,null,23,"【毛寶兔】超天然小蘇打活氧殺菌漂白素330g x4",null,null,null,null,null,null,"★抑菌率99.99% ★氧系漂白成分，花色衣物也能安心使用",null,null,null,null,null,null,600,356,{"$f":"團購明細表!AH28","v":0},0]
[null,null,24,"【毛寶】葳香魔法去污抗菌素500g x4 ",null,null,null,null,null,null,"★實驗證實，有效洗淨4大病毒 ★洗衣加1蓋、病毒壞菌掰",null,null,null,null,null,null,1040,439,{"$f":"團購明細表!AH29","v":0},0]
[null,null,25,"【毛寶】葳香洗淨4大病毒-衣物抗菌水1050g x4",null,null,null,null,null,null,"★實驗證實，有效洗淨4大病毒 ★48小時長效抗菌",null,null,null,null,null,null,1040,439,{"$f":"團購明細表!AH30","v":0},0]
["居家清潔系列",null,26,"【毛寶兔】超酵素活氧洗衣槽除菌去污劑250g x6",null,null,null,null,null,null,"★超酵素活氧配方，含PT酵素 ★SGS檢驗抑菌率>99.9％",null,null,null,null,null,null,450,270,{"$f":"團購明細表!AH31","v":0},0]
[null,null,27,"【毛寶】洗衣槽專用去污劑-洗淨病毒 300g-3入 x4",null,null,null,null,null,null,"★99.9%洗淨病毒 ★Ag+銀離子配方，高效移除頑強污垢",null,null,null,null,null,null,672,399,{"$f":"團購明細表!AH32","v":0},0]
[null,null,28,"【毛寶】葳香地板清潔抗菌水2000g x2",null,null,null,null,null,null,"★99.9%有效去除4大病毒 ★植萃低泡沫配方，速乾不留痕",null,null,null,null,null,null,436,218,{"$f":"團購明細表!AH33","v":0},0]
[null,null,29,"【香滿室】地板清潔劑(清新茶樹)2000g x1+1800g補充包 x1",null,null,null,null,null,null,"★萃取天然草本抑菌成分 ★溫和中性安全不刺激                            ",null,null,null,null,null,null,270,178,{"$f":"團購明細表!AH34","v":0},0]
[null,null,30,"【香滿室】地板清潔劑(海洋微風)2000g x1+1800g補充包 x1",null,null,null,null,null,null,"★萃取天然草本抑菌成分 ★溫和中性安全不刺激                            ",null,null,null,null,null,null,270,178,{"$f":"團購明細表!AH35","v":0},0]
[null,null,31,"【香滿室】地板清潔劑(檀木馨香)2000g x1+1800g補充包 x1",null,null,null,null,null,null,"★萃取天然草本抑菌成分 ★溫和中性安全不刺激                            ",null,null,null,null,null,null,270,178,{"$f":"團購明細表!AH36","v":0},0]
[null,null,32,"【香滿室】地板清潔劑(薰衣草)2000g x1+1800g補充包 x1",null,null,null,null,null,null,"★萃取天然草本抑菌成分 ★溫和中性安全不刺激                            ",null,null,null,null,null,null,270,178,{"$f":"團購明細表!AH37","v":0},0]
[null,null,33,"【毛寶兔】超水感天然植物除菌清潔劑425g x2",null,null,null,null,null,null,"★適合有嬰兒家庭 ★清潔、除菌除臭 ★不須用水擦拭  ",null,null,null,null,null,null,300,210,{"$f":"團購明細表!AH38","v":0},0]
[null,null,34,"【毛寶】米精萃洗碗精1000g x2",null,null,null,null,null,null,"★米糠精萃瓦解油膩髒污 ★中性溫和親膚不傷手          ",null,null,null,null,null,null,398,179,{"$f":"團購明細表!AH39","v":0},0]
[null,null,35,"【毛寶】果淨酵素食器蔬果洗滌液體皂700g-麝香葡萄 x1 + 柚子果茶 x1 + 蜜柑茶萃 x1",null,null,null,null,null,null,"★**USDA美國綠色認證** 自然科學精準洗淨！                                                 ★食器、蔬果及奶瓶清潔均適用",null,null,null,null,null,null,594,297,{"$f":"團購明細表!AH40","v":0},0]
[null,null,36,"【毛寶】熱水瓶開飲機洗淨劑25g*3/盒 x4",null,null,null,null,null,null,"★有效分解水垢，消臭、不殘留，提升飲用水品質",null,null,null,null,null,null,356,236,{"$f":"團購明細表!AH41","v":0},0]
[null,null,37,"【毛寶】小蘇打烤箱&氣炸鍋潔淨泡425g x2",null,null,null,null,null,null,"★食品添加物等級小蘇打及植物來源去垢成分                        ★綿密細緻泡泡，深層瓦解油汙",null,null,null,null,null,null,436,218,{"$f":"團購明細表!AH42","v":0},0]
[null,null,38,"【毛寶】廚房食器淨垢泡泡粉500g x2",null,null,null,null,null,null,"★3重活氧解垢泡 深度瓦解污垢 ★輕鬆清潔 方便省時省力",null,null,null,null,null,null,436,218,{"$f":"團購明細表!AH43","v":0},0]
[null,null,39,"【毛寶】電鍋清潔劑200g x2 ",null,null,null,null,null,null,"★經SGS檢驗 ★食用級檸檬酸複合配方 ★除水垢焦垢",null,null,null,null,null,null,258,158,{"$f":"團購明細表!AH44","v":0},0]
[null,null,40,"【毛寶兔】廚房去油除垢清潔劑500g x1 + 浴廁去污除菌清潔劑500g x1+ 馬桶去垢除臭清潔劑651g x1",null,null,null,null,null,null,"★強效去油成分CQR，5分鐘去除頑垢 ★天然有機檸檬酸，迅速去除水垢及皂垢  ★獨家AHA果酸天然去污除菌 ",null,null,null,null,null,null,393,239,{"$f":"團購明細表!AH45","v":0},0]
[null,null,41,"【毛寶兔】超泡沫廚房去油除垢清潔劑2000g x2 贈500g噴槍瓶 x1",null,null,null,null,null,null,"★高效網狀噴頭，輕鬆包覆油污！ ★強效去油成分CQR，5分鐘去除頑垢",null,null,null,null,null,null,729,499,{"$f":"團購明細表!AH46","v":0},0]
[null,null,42,"【毛寶兔】超泡沫廚房去油除垢清潔劑500g噴槍瓶 x2",null,null,null,null,null,null,"★高效網狀噴頭，輕鬆包覆油污！ ★強效去油成分CQR，5分鐘去除頑垢",null,null,null,null,null,null,258,160,{"$f":"團購明細表!AH47","v":0},0]
[null,null,43,"【毛寶兔】超檸檬浴廁去污除菌清潔劑2000g x2 贈500g噴槍瓶 x1",null,null,null,null,null,null,"★天然有機檸檬酸，迅速去除水垢及皂垢                               ★使用後散發淡淡花果清香",null,null,null,null,null,null,779,499,{"$f":"團購明細表!AH48","v":0},0]
[null,null,44,"【毛寶兔】超檸檬浴廁去污除菌清潔劑500g噴槍瓶 x2",null,null,null,null,null,null,"★天然有機檸檬酸，迅速去除水垢及皂垢                               ★使用後散發淡淡花果清香",null,null,null,null,null,null,278,160,{"$f":"團購明細表!AH49","v":0},0]
[null,null,45,"【毛寶兔】超果酸馬桶去垢除臭清潔劑651g x4",null,null,null,null,null,null,"★獨家AHA果酸天然去污除菌\n★藍色配方升級版，清潔哪裡看得見、使用更便利",null,null,null,null,null,null,500,300,{"$f":"團購明細表!AH50","v":0},0]
[null,null,46,"【毛寶】超強效萬用去污劑 - 白柚清香2000g x2 贈500g-噴槍瓶 x1",null,null,null,null,null,null,"★超強效配方，獨特CQ-100強效去污因子，輕鬆終結頑垢     ★淡雅柚子果香，清潔時味道清新不刺鼻",null,null,null,null,null,null,497,299,{"$f":"團購明細表!AH51","v":0},0]
["個人清潔防蚊系列",null,47,"小鹿山丘12H長效防蚊液80mL-25%派卡瑞丁 x2 +20mL-25%派卡瑞丁 x1",null,null,null,null,null,null,"★創新雙重配方：世衛推薦派卡瑞丁+有機認證精油             ★12小時長效防蚊，有效防護一般蚊+小黑蚊",null,null,null,null,null,null,1917,1239,{"$f":"團購明細表!AH52","v":0},0]
[null,null,48,"小鹿山丘有機精油長效雙效防蚊液120g x3 贈毛寶兔鑰匙圈吊飾 x1",null,null,null,null,null,null,"★天然有機精油，5-6小時有效防蚊 \n★預防一般蚊與小黑蚊叮咬",null,null,null,null,null,null,2357,1350,{"$f":"團購明細表!AH53","v":0},0]
[null,null,49,"小鹿山丘有機精油長效雙效防蚊液60g x2 贈小鹿山丘有機精油雙效防蚊液30g(甜橙精油) x1",null,null,null,null,null,null,"★天然有機精油，5-6小時有效防蚊 \n★預防一般蚊與小黑蚊叮咬",null,null,null,null,null,null,989,599,{"$f":"團購明細表!AH54","v":0},0]
[null,null,50,"小鹿山丘夏日限定禮盒 x1 (內含小鹿山丘有機精油雙效抗菌防蚊液70g-茶樹精油 x1+檸檬草精油 x1)",null,null,null,null,null,null,"★禮盒與知名插畫家合作，精美包裝、夏日送禮首選\n★附贈小鹿山丘夏日旅行地圖-紙膠帶x2+明信片x1",null,null,null,null,null,null,780,439,{"$f":"團購明細表!AH55","v":0},0]
[null,null,51,"小鹿山丘有機精油驅蚊貼片12枚 x4",null,null,null,null,null,null,"★精油揮發效果長達12小時 ★嬰幼兒及大人皆能安心使用",null,null,null,null,null,null,960,600,{"$f":"團購明細表!AH56","v":0},{"$f":"S72*T72","v":0}]
[null,null,52,"小鹿山丘草本防蚊彈力凍250g-茶樹精油 x3",null,null,null,null,null,null,"★環保署核可天然防蚊成分，有效驅趕蚊蟲                          \n★台灣知名大學研究中心實驗證實，有效防蚊45~60天",null,null,null,null,null,null,897,597,{"$f":"團購明細表!AH57","v":0},0]
[null,null,53,"小鹿山丘葡萄柚籽植萃乾洗手80g x2",null,null,null,null,null,null,"★添加葡萄柚籽萃取、七合一草本潔淨因子 ★隨身清潔首選",null,null,null,null,null,null,398,199,{"$f":"團購明細表!AH58","v":0},0]
[null,null,54,"【毛寶】葳香抗菌水噴霧425g x2 ",null,null,null,null,null,null,"★99.99%阻斷4大病毒 ★食品級柑橘香無酒精，使用不刺激",null,null,null,null,null,null,520,218,{"$f":"團購明細表!AH59","v":0},0]
[null,null,55,"【毛寶】葳香抗菌洗手慕斯300g x2",null,null,null,null,null,null,"★保養品級玻尿酸水潤保溼，洗後不乾澀 ★精心調香，精緻的香氛體驗 ★慕斯型泡沫，每次用量僅為洗手乳的1/3",null,null,null,null,null,null,476,238,{"$f":"團購明細表!AH60","v":0},0]
["新品",null,56,"【毛寶全效】金消蟑凝膠餌劑10g x2",null,null,null,null,null,null,"★強化誘食性配方，有效吸引蟑螂取食                                   \n★連鎖型藥效，一隻食餌，整個巢穴擴散",null,null,null,null,null,null,778,499,{"$f":"團購明細表!AH61","v":0},0]
[null,null,57,"【毛寶】小蘇打植萃香氛洗衣皂晶球-防螨抗菌25顆 x1 + 除霉抗菌25顆 x1 贈毛寶粉領精-多重酵素衣物去漬劑30g x1",null,null,null,null,null,null,"★                                                       ",null,null,null,null,null,null,769,299,{"$f":"團購明細表!AH62","v":0},0]
[null,null,58,"【毛寶】葳香抗菌洗手慕斯300g x2",null,null,null,null,null,null,"★                                                       ",null,null,null,null,null,null,476,238,{"$f":"團購明細表!AH63","v":0},0]
[null,null,59,null,null,null,null,null,null,null,null,null,null,null,null,null,null,null,null,{"$f":"團購明細表!AH64","v":0},0]
[null,null,60,null,null,null,null,null,null,null,null,null,null,null,null,null,null,null,null,{"$f":"團購明細表!AH65","v":0},0]
[null,null,{"$f":"SUM(U22:U81)","v":0},"訂單金額未滿2000元，另付運費100元；滿2000元免運",null,null,null,null,null,null,null,null,null,null,null,null,null,null,null,{"$f":"IF(C82<2000,1,0)","v":1},{"$f":"T82*100","v":100}]
["滿2500元送「滿額好禮」",null,null,null,null,null,null,null,null,null,null,null,null,null,null,null,null,null,null,{"$f":"IF(S84>=2500,1,0)","v":0},{"$f":"S83*T83","v":0}]
["訂單總金額(NT$元)",null,null,null,null,null,null,null,null,null,null,null,null,null,null,null,null,null,{"$f":"SUM(U22:U81)+U82","v":100}]
["注意事項"]
["1. 訂購單請詳細填寫email及聯絡電話，訂單成立以email通知，出貨前1～2天以mail通知預計到貨日期，如不便收件，可直接與司機改期配送。無法聯繫3次，即取消訂單。\n2. 響應財政部電子發票政策，一律開立電子發票，發票開立資訊會派送到email信箱。二聯式改開三聯式、三聯式改開二聯式，請辦理退貨取消訂單重新下單。\n3. 送貨時間週一至週六9:00~17:00，訂單成立2~7個工作天出貨，離島外島恕不配送。ATM轉帳、信用卡付款、Line Pay、街口支付、台灣Pay、悠遊付、全支付僅適用「網路訂購」，一次付清。電話及傳真訂購僅限用「貨到付款」，貨到付款者請備妥正確貨款交由送貨人員，恕不找零。週六配送無法指定日期，以實際出貨順序安排配送；實際配送時段，以貨運公司配送實際為準。若遇貨品配達時不方便收貨，請直接與司機另約配送時間，且另約之配送時間不可超過7天；週日不送貨。\n4. 單筆訂單未滿2,000元，另外收取100元運費。單筆訂單滿$2,500即贈送「毛寶果淨酵素食器蔬果洗滌液體皂700g-蜜柑茶萃($198 )、滿$3,500送毛寶葳香洗淨4大病毒-衣物抗菌水1050g($260)+毛寶葳香魔法去污洗淨病毒抗菌素500g($260 )」，贈品恕不累送。贈品數量有限，送完為止。毛寶股份有限公司保留更換其他贈品權利。\n5.每筆訂貨單之訂貨資料將以本公司實際收到之訂貨單內容為依據，如有任何因電腦、網路、電話、技術或不可歸責於毛寶股份有限公司之事由，而使購買者所寄出或填寫之資料有遲延、遺失、錯誤、無法辨識或毀損情況，毛寶股份有限公司不負任何法律責任，購買者亦不得因此異議或要求賠償。毛寶股份有限公司保留接單與否及更換贈品之權利，以及更改/解釋活動內容之權利。\n6. 本人同意所填資料供毛寶股份有限公司作為促銷及行銷活動使用；若不同意請來信或來電表示。\n7. 活動價格、資訊以網站公告為主。如有任何疑問，請聯絡客服電話0800-266-199  客服傳真02-8976-2715  服務時間：週一至週五  09:00～12:30、13:30 ~ 17:00。"]

{"sheet":"團購明細表","index":1,"n_rows":66,"n_cols":34,"rows_kept":66,"cut":false,"hidden":false,"merged":[[1,0,1,10],[2,33,4,33]]}
["【2024-12 毛寶兔宅配網冬特賣】訂購單 "]
["*此明細表的總計數量與金額，將會統計於另一工作表【團購訂購單】中。"]
[null,null,"訂\n購\n人",null,null,null,null,null,null,null,null,null,null,null,null,null,null,null,null,null,null,null,null,null,null,null,null,null,null,null,null,null,null,"品項總數"]
[null,null,"分機"]
["項次","產品名稱","特價",1,2,3,4,5,6,7,8,9,10,11,12,13,14,15,16,17,18,19,20,21,22,23,24,25,26,27,28,29,30]
[1,{"$f":"'訂購單 '!D22","v":"【毛寶兔】超天然小蘇打植物2倍濃縮洗衣精1000g x1瓶+ 800g-補充包 x9包 贈毛寶兔鑰匙圈 x1"},{"$f":"'訂購單 '!S22","v":999},null,null,null,null,null,null,null,null,null,null,null,null,null,null,null,null,null,null,null,null,null,null,null,null,null,null,null,null,null,null,{"$f":"SUM(D6:AG6)","v":0}]
[2,{"$f":"'訂購單 '!D23","v":"【毛寶兔】超天然小蘇打植物2倍濃縮洗衣精1000g x1+800g x2 + 超天然小蘇打活氧殺菌漂白素330g x1"},{"$f":"'訂購單 '!S23","v":459},null,null,null,null,null,null,null,null,null,null,null,null,null,null,null,null,null,null,null,null,null,null,null,null,null,null,null,null,null,null,{"$f":"SUM(D7:AG7)","v":0}]
[3,{"$f":"'訂購單 '!D24","v":"【毛寶兔】超天然小蘇打植物2倍濃縮洗衣精5020g x2 贈毛寶兔洗衣袋 x1"},{"$f":"'訂購單 '!S24","v":999},null,null,null,null,null,null,null,null,null,null,null,null,null,null,null,null,null,null,null,null,null,null,null,null,null,null,null,null,null,null,0]
[4,{"$f":"'訂購單 '!D25","v":"【毛寶兔】超酵素制臭抗菌防霉洗衣精2000g x1 +1800g補充包 x6 贈毛寶小蘇打植萃香氛洗衣皂晶球5顆 x1"},{"$f":"'訂購單 '!S25","v":749},null,null,null,null,null,null,null,null,null,null,null,null,null,null,null,null,null,null,null,null,null,null,null,null,null,null,null,null,null,null,0]
[5,{"$f":"'訂購單 '!D26","v":"【毛寶】葳香抗菌洗衣精-2X酵素植淨5020g x2 贈毛寶制臭抗菌織物清新噴霧-瞬效除皺250g x1"},{"$f":"'訂購單 '!S26","v":1099},null,null,null,null,null,null,null,null,null,null,null,null,null,null,null,null,null,null,null,null,null,null,null,null,null,null,null,null,null,null,0]
[6,{"$f":"'訂購單 '!D27","v":"【毛寶】小蘇打植萃香氛洗衣皂晶球-防螨抗菌25顆 x1 + 除霉抗菌25顆 x1 贈毛寶粉領精-多重酵素衣物去漬劑30g x1"},{"$f":"'訂購單 '!S27","v":299},null,null,null,null,null,null,null,null,null,null,null,null,null,null,null,null,null,null,null,null,null,null,null,null,null,null,null,null,null,null,0]
[7,{"$f":"'訂購單 '!D28","v":"【毛寶】PM2.5除霉防蟎抗菌洗衣精_洗淨病毒2200g x2 + 天然植萃抗菌洗衣精_洗淨病毒2200g x2 + 制臭極淨抗菌洗衣精_洗淨病毒2200g x2 贈毛寶兔活氧酵素洗衣槽去污劑250g(柑橘清香)-效期至2025/4 x2"},{"$f":"'訂購單 '!S28","v":594},null,null,null,null,null,null,null,null,null,null,null,null,null,null,null,null,null,null,null,null,null,null,null,null,null,null,null,null,null,null,0]
[8,{"$f":"'訂購單 '!D29","v":"【毛寶S】抗菌防霉洗衣精20kg x4 贈油嘴專用套管 x1 + 毛寶小蘇打洗碗精1000g(甜橙茶氛) x1"},{"$f":"'訂購單 '!S29","v":2400},null,null,null,null,null,null,null,null,null,null,null,null,null,null,null,null,null,null,null,null,null,null,null,null,null,null,null,null,null,null,0]
[9,{"$f":"'訂購單 '!D30","v":"【毛寶S】酵素香氛洗衣精20kg x4 贈油嘴專用套管 x1 + 毛寶小蘇打洗碗精1000g(甜橙茶氛) x1"},{"$f":"'訂購單 '!S30","v":2400},null,null,null,null,null,null,null,null,null,null,null,null,null,null,null,null,null,null,null,null,null,null,null,null,null,null,null,null,null,null,0]
[10,{"$f":"'訂購單 '!D31","v":"【毛寶S】抗菌防霉洗衣精20kg x10 贈油嘴專用套管 x3 + 毛寶S強效潔淨洗碗精4kg (清香柑橘) x1"},{"$f":"'訂購單 '!S31","v":6000},null,null,null,null,null,null,null,null,null,null,null,null,null,null,null,null,null,null,null,null,null,null,null,null,null,null,null,null,null,null,0]
[11,{"$f":"'訂購單 '!D32","v":"【毛寶S】高效濃縮抗菌防霉洗衣精10kg x2 贈毛寶小蘇打洗碗精1000g(甜橙茶氛) x1 "},{"$f":"'訂購單 '!S32","v":1200},null,null,null,null,null,null,null,null,null,null,null,null,null,null,null,null,null,null,null,null,null,null,null,null,null,null,null,null,null,null,0]
[12,{"$f":"'訂購單 '!D33","v":"【毛寶S】高效濃縮酵素香氛洗衣精10kg x2 贈毛寶小蘇打洗碗精1000g(甜橙茶氛) x1"},{"$f":"'訂購單 '!S33","v":1200},null,null,null,null,null,null,null,null,null,null,null,null,null,null,null,null,null,null,null,null,null,null,null,null,null,null,null,null,null,null,0]
[13,{"$f":"'訂購單 '!D34","v":"【毛寶S】溫暖日光柔軟精20kg x2 贈油嘴專用套管 x1"},{"$f":"'訂購單 '!S34","v":1100},null,null,null,null,null,null,null,null,null,null,null,null,null,null,null,null,null,null,null,null,null,null,null,null,null,null,null,null,null,null,0]
[14,{"$f":"'訂購單 '!D35","v":"【毛寶】貼身衣物手洗精1000g-玫瑰天竺葵 x1 + 果漾西西里 x1"},{"$f":"'訂購單 '!S35","v":188},null,null,null,null,null,null,null,null,null,null,null,null,null,null,null,null,null,null,null,null,null,null,null,null,null,null,null,null,null,null,0]
[15,{"$f":"'訂購單 '!D36","v":"【毛寶】環保冷洗精2800g x1 +毛寶環保冷洗精2000g-補充包 x1"},{"$f":"'訂購單 '!S36","v":399},null,null,null,null,null,null,null,null,null,null,null,null,null,null,null,null,null,null,null,null,null,null,null,null,null,null,null,null,null,null,0]
[16,{"$f":"'訂購單 '!D37","v":"【毛寶】X-sport 專業運動酵素洗衣精500g-沁檸白麝香 x1 + 玫瑰香柏 x1"},{"$f":"'訂購單 '!S37","v":799},null,null,null,null,null,null,null,null,null,null,null,null,null,null,null,null,null,null,null,null,null,null,null,null,null,null,null,null,null,null,0]
[17,{"$f":"'訂購單 '!D38","v":"【毛寶】粉領精-多重酵素衣物去漬劑500g x3 "},{"$f":"'訂購單 '!S38","v":327},null,null,null,null,null,null,null,null,null,null,null,null,null,null,null,null,null,null,null,null,null,null,null,null,null,null,null,null,null,null,0]
[18,{"$f":"'訂購單 '!D39","v":"【毛寶兔】超酵素衣領衣物去漬劑500g-噴槍瓶 x2"},{"$f":"'訂購單 '!S39","v":199},null,null,null,null,null,null,null,null,null,null,null,null,null,null,null,null,null,null,null,null,null,null,null,null,null,null,null,null,null,null,0]
[19,{"$f":"'訂購單 '!D40","v":"【毛寶兔】超酵素衣領衣物去漬劑2000g-補充瓶 x2 贈500g噴槍瓶 x1"},{"$f":"'訂購單 '!S40","v":470},null,null,null,null,null,null,null,null,null,null,null,null,null,null,null,null,null,null,null,null,null,null,null,null,null,null,null,null,null,null,0]
[20,{"$f":"'訂購單 '!D41","v":"【毛寶兔】超複合酵素衣物去漬凝膠250g x2"},{"$f":"'訂購單 '!S41","v":198},null,null,null,null,null,null,null,null,null,null,null,null,null,null,null,null,null,null,null,null,null,null,null,null,null,null,null,null,null,null,0]
[21,{"$f":"'訂購單 '!D42","v":"【毛寶】葳香衣物柔軟精-花香3200g x1 + 1900g-補充包 x2"},{"$f":"'訂購單 '!S42","v":229},null,null,null,null,null,null,null,null,null,null,null,null,null,null,null,null,null,null,null,null,null,null,null,null,null,null,null,null,null,null,0]
[22,{"$f":"'訂購單 '!D43","v":"【毛寶】葳香衣物柔軟精-防霉3200g x1 + 1900g-補充包 x2"},{"$f":"'訂購單 '!S43","v":229},null,null,null,null,null,null,null,null,null,null,null,null,null,null,null,null,null,null,null,null,null,null,null,null,null,null,null,null,null,null,0]
[23,{"$f":"'訂購單 '!D44","v":"【毛寶兔】超天然小蘇打活氧殺菌漂白素330g x4"},{"$f":"'訂購單 '!S44","v":356},null,null,null,null,null,null,null,null,null,null,null,null,null,null,null,null,null,null,null,null,null,null,null,null,null,null,null,null,null,null,0]
[24,{"$f":"'訂購單 '!D45","v":"【毛寶】葳香魔法去污抗菌素500g x4 "},{"$f":"'訂購單 '!S45","v":439},null,null,null,null,null,null,null,null,null,null,null,null,null,null,null,null,null,null,null,null,null,null,null,null,null,null,null,null,null,null,0]
[25,{"$f":"'訂購單 '!D46","v":"【毛寶】葳香洗淨4大病毒-衣物抗菌水1050g x4"},{"$f":"'訂購單 '!S46","v":439},null,null,null,null,null,null,null,null,null,null,null,null,null,null,null,null,null,null,null,null,null,null,null,null,null,null,null,null,null,null,0]
[26,{"$f":"'訂購單 '!D47","v":"【毛寶兔】超酵素活氧洗衣槽除菌去污劑250g x6"},{"$f":"'訂購單 '!S47","v":270},null,null,null,null,null,null,null,null,null,null,null,null,null,null,null,null,null,null,null,null,null,null,null,null,null,null,null,null,null,null,0]
[27,{"$f":"'訂購單 '!D48","v":"【毛寶】洗衣槽專用去污劑-洗淨病毒 300g-3入 x4"},{"$f":"'訂購單 '!S48","v":399},null,null,null,null,null,null,null,null,null,null,null,null,null,null,null,null,null,null,null,null,null,null,null,null,null,null,null,null,null,null,0]
[28,{"$f":"'訂購單 '!D49","v":"【毛寶】葳香地板清潔抗菌水2000g x2"},{"$f":"'訂購單 '!S49","v":218},null,null,null,null,null,null,null,null,null,null,null,null,null,null,null,null,null,null,null,null,null,null,null,null,null,null,null,null,null,null,0]
[29,{"$f":"'訂購單 '!D50","v":"【香滿室】地板清潔劑(清新茶樹)2000g x1+1800g補充包 x1"},{"$f":"'訂購單 '!S50","v":178},null,null,null,null,null,null,null,null,null,null,null,null,null,null,null,null,null,null,null,null,null,null,null,null,null,null,null,null,null,null,0]
[30,{"$f":"'訂購單 '!D51","v":"【香滿室】地板清潔劑(海洋微風)2000g x1+1800g補充包 x1"},{"$f":"'訂購單 '!S51","v":178},null,null,null,null,null,null,null,null,null,null,null,null,null,null,null,null,null,null,null,null,null,null,null,null,null,null,null,null,null,null,0]
[31,{"$f":"'訂購單 '!D52","v":"【香滿室】地板清潔劑(檀木馨香)2000g x1+1800g補充包 x1"},{"$f":"'訂購單 '!S52","v":178},null,null,null,null,null,null,null,null,null,null,null,null,null,null,null,null,null,null,null,null,null,null,null,null,null,null,null,null,null,null,0]
[32,{"$f":"'訂購單 '!D53","v":"【香滿室】地板清潔劑(薰衣草)2000g x1+1800g補充包 x1"},{"$f":"'訂購單 '!S53","v":178},null,null,null,null,null,null,null,null,null,null,null,null,null,null,null,null,null,null,null,null,null,null,null,null,null,null,null,null,null,null,0]
[33,{"$f":"'訂購單 '!D54","v":"【毛寶兔】超水感天然植物除菌清潔劑425g x2"},{"$f":"'訂購單 '!S54","v":210},null,null,null,null,null,null,null,null,null,null,null,null,null,null,null,null,null,null,null,null,null,null,null,null,null,null,null,null,null,null,0]
[34,{"$f":"'訂購單 '!D55","v":"【毛寶】米精萃洗碗精1000g x2"},{"$f":"'訂購單 '!S55","v":179},null,null,null,null,null,null,null,null,null,null,null,null,null,null,null,null,null,null,null,null,null,null,null,null,null,null,null,null,null,null,0]
[35,{"$f":"'訂購單 '!D56","v":"【毛寶】果淨酵素食器蔬果洗滌液體皂700g-麝香葡萄 x1 + 柚子果茶 x1 + 蜜柑茶萃 x1"},{"$f":"'訂購單 '!S56","v":297},null,null,null,null,null,null,null,null,null,null,null,null,null,null,null,null,null,null,null,null,null,null,null,null,null,null,null,null,null,null,0]
[36,{"$f":"'訂購單 '!D57","v":"【毛寶】熱水瓶開飲機洗淨劑25g*3/盒 x4"},{"$f":"'訂購單 '!S57","v":236},null,null,null,null,null,null,null,null,null,null,null,null,null,null,null,null,null,null,null,null,null,null,null,null,null,null,null,null,null,null,0]
[37,{"$f":"'訂購單 '!D58","v":"【毛寶】小蘇打烤箱&氣炸鍋潔淨泡425g x2"},{"$f":"'訂購單 '!S58","v":218},null,null,null,null,null,null,null,null,null,null,null,null,null,null,null,null,null,null,null,null,null,null,null,null,null,null,null,null,null,null,0]
[38,{"$f":"'訂購單 '!D59","v":"【毛寶】廚房食器淨垢泡泡粉500g x2"},{"$f":"'訂購單 '!S59","v":218},null,null,null,null,null,null,null,null,null,null,null,null,null,null,null,null,null,null,null,null,null,null,null,null,null,null,null,null,null,null,0]
[39,{"$f":"'訂購單 '!D60","v":"【毛寶】電鍋清潔劑200g x2 "},{"$f":"'訂購單 '!S60","v":158},null,null,null,null,null,null,null,null,null,null,null,null,null,null,null,null,null,null,null,null,null,null,null,null,null,null,null,null,null,null,0]
[40,{"$f":"'訂購單 '!D61","v":"【毛寶兔】廚房去油除垢清潔劑500g x1 + 浴廁去污除菌清潔劑500g x1+ 馬桶去垢除臭清潔劑651g x1"},{"$f":"'訂購單 '!S61","v":239},null,null,null,null,null,null,null,null,null,null,null,null,null,null,null,null,null,null,null,null,null,null,null,null,null,null,null,null,null,null,0]
[41,{"$f":"'訂購單 '!D62","v":"【毛寶兔】超泡沫廚房去油除垢清潔劑2000g x2 贈500g噴槍瓶 x1"},{"$f":"'訂購單 '!S62","v":499},null,null,null,null,null,null,null,null,null,null,null,null,null,null,null,null,null,null,null,null,null,null,null,null,null,null,null,null,null,null,0]
[42,{"$f":"'訂購單 '!D63","v":"【毛寶兔】超泡沫廚房去油除垢清潔劑500g噴槍瓶 x2"},{"$f":"'訂購單 '!S63","v":160},null,null,null,null,null,null,null,null,null,null,null,null,null,null,null,null,null,null,null,null,null,null,null,null,null,null,null,null,null,null,0]
[43,{"$f":"'訂購單 '!D64","v":"【毛寶兔】超檸檬浴廁去污除菌清潔劑2000g x2 贈500g噴槍瓶 x1"},{"$f":"'訂購單 '!S64","v":499},null,null,null,null,null,null,null,null,null,null,null,null,null,null,null,null,null,null,null,null,null,null,null,null,null,null,null,null,null,null,0]
[44,{"$f":"'訂購單 '!D65","v":"【毛寶兔】超檸檬浴廁去污除菌清潔劑500g噴槍瓶 x2"},{"$f":"'訂購單 '!S65","v":160},null,null,null,null,null,null,null,null,null,null,null,null,null,null,null,null,null,null,null,null,null,null,null,null,null,null,null,null,null,null,0]
[45,{"$f":"'訂購單 '!D66","v":"【毛寶兔】超果酸馬桶去垢除臭清潔劑651g x4"},{"$f":"'訂購單 '!S66","v":300},null,null,null,null,null,null,null,null,null,null,null,null,null,null,null,null,null,null,null,null,null,null,null,null,null,null,null,null,null,null,0]
[46,{"$f":"'訂購單 '!D67","v":"【毛寶】超強效萬用去污劑 - 白柚清香2000g x2 贈500g-噴槍瓶 x1"},{"$f":"'訂購單 '!S67","v":299},null,null,null,null,null,null,null,null,null,null,null,null,null,null,null,null,null,null,null,null,null,null,null,null,null,null,null,null,null,null,0]
[47,{"$f":"'訂購單 '!D68","v":"小鹿山丘12H長效防蚊液80mL-25%派卡瑞丁 x2 +20mL-25%派卡瑞丁 x1"},{"$f":"'訂購單 '!S68","v":1239},null,null,null,null,null,null,null,null,null,null,null,null,null,null,null,null,null,null,null,null,null,null,null,null,null,null,null,null,null,null,0]
[48,{"$f":"'訂購單 '!D69","v":"小鹿山丘有機精油長效雙效防蚊液120g x3 贈毛寶兔鑰匙圈吊飾 x1"},{"$f":"'訂購單 '!S69","v":1350},null,null,null,null,null,null,null,null,null,null,null,null,null,null,null,null,null,null,null,null,null,null,null,null,null,null,null,null,null,null,0]
[49,{"$f":"'訂購單 '!D70","v":"小鹿山丘有機精油長效雙效防蚊液60g x2 贈小鹿山丘有機精油雙效防蚊液30g(甜橙精油) x1"},{"$f":"'訂購單 '!S70","v":599},null,null,null,null,null,null,null,null,null,null,null,null,null,null,null,null,null,null,null,null,null,null,null,null,null,null,null,null,null,null,0]
[50,{"$f":"'訂購單 '!D71","v":"小鹿山丘夏日限定禮盒 x1 (內含小鹿山丘有機精油雙效抗菌防蚊液70g-茶樹精油 x1+檸檬草精油 x1)"},{"$f":"'訂購單 '!S71","v":439},null,null,null,null,null,null,null,null,null,null,null,null,null,null,null,null,null,null,null,null,null,null,null,null,null,null,null,null,null,null,0]
[51,{"$f":"'訂購單 '!D72","v":"小鹿山丘有機精油驅蚊貼片12枚 x4"},{"$f":"'訂購單 '!S72","v":600},null,null,null,null,null,null,null,null,null,null,null,null,null,null,null,null,null,null,null,null,null,null,null,null,null,null,null,null,null,null,0]
[52,{"$f":"'訂購單 '!D73","v":"小鹿山丘草本防蚊彈力凍250g-茶樹精油 x3"},{"$f":"'訂購單 '!S73","v":597},null,null,null,null,null,null,null,null,null,null,null,null,null,null,null,null,null,null,null,null,null,null,null,null,null,null,null,null,null,null,0]
[53,{"$f":"'訂購單 '!D74","v":"小鹿山丘葡萄柚籽植萃乾洗手80g x2"},{"$f":"'訂購單 '!S74","v":199},null,null,null,null,null,null,null,null,null,null,null,null,null,null,null,null,null,null,null,null,null,null,null,null,null,null,null,null,null,null,0]
[54,{"$f":"'訂購單 '!D75","v":"【毛寶】葳香抗菌水噴霧425g x2 "},{"$f":"'訂購單 '!S75","v":218},null,null,null,null,null,null,null,null,null,null,null,null,null,null,null,null,null,null,null,null,null,null,null,null,null,null,null,null,null,null,0]
[55,{"$f":"'訂購單 '!D76","v":"【毛寶】葳香抗菌洗手慕斯300g x2"},{"$f":"'訂購單 '!S76","v":238},null,null,null,null,null,null,null,null,null,null,null,null,null,null,null,null,null,null,null,null,null,null,null,null,null,null,null,null,null,null,0]
[56,{"$f":"'訂購單 '!D77","v":"【毛寶全效】金消蟑凝膠餌劑10g x2"},{"$f":"'訂購單 '!S77","v":499},null,null,null,null,null,null,null,null,null,null,null,null,null,null,null,null,null,null,null,null,null,null,null,null,null,null,null,null,null,null,0]
[57,{"$f":"'訂購單 '!D78","v":"【毛寶】小蘇打植萃香氛洗衣皂晶球-防螨抗菌25顆 x1 + 除霉抗菌25顆 x1 贈毛寶粉領精-多重酵素衣物去漬劑30g x1"},{"$f":"'訂購單 '!S78","v":299},null,null,null,null,null,null,null,null,null,null,null,null,null,null,null,null,null,null,null,null,null,null,null,null,null,null,null,null,null,null,0]
[58,{"$f":"'訂購單 '!D79","v":"【毛寶】葳香抗菌洗手慕斯300g x2"},{"$f":"'訂購單 '!S79","v":238},null,null,null,null,null,null,null,null,null,null,null,null,null,null,null,null,null,null,null,null,null,null,null,null,null,null,null,null,null,null,0]
[59,{"$f":"'訂購單 '!D80","v":0},{"$f":"'訂購單 '!S80","v":0},null,null,null,null,null,null,null,null,null,null,null,null,null,null,null,null,null,null,null,null,null,null,null,null,null,null,null,null,null,null,0]
[60,{"$f":"'訂購單 '!D81","v":0},{"$f":"'訂購單 '!S81","v":0},null,null,null,null,null,null,null,null,null,null,null,null,null,null,null,null,null,null,null,null,null,null,null,null,null,null,null,null,null,null,0]
[null,null,"小計",{"$f":"D6*$C$6+D7*$C$7+D8*$C$8+D9*$C$9+D10*$C$10+D11*$C$11+D12*$C$12+D13*$C$13+D14*$C$14+D15*$C$15+D16*$C$16+D17*$C$17+D18*$C$18+D19*$C$19+D20*$C$20+D21*$C$21+D22*$C$22+D23*$C$23+D24*$C$24+D25*$C$25+D26*$C$26+D27*$C$27+D28*$C$28+D29*$C$29+D30*$C$30+D31*$C$31+D32*$C$32+D33*$C$33+D34*$C$34+D35*$C$35+D36*$C$36+D37*$C$37+D38*$C$38+D39*$C$39+D40*$C$40+D41*$C$41+D42*$C$42+D43*$C$43+D44*$C$44+D45*$C$45+D46*$C$46+D47*$C$47+D48*$C$48+D49*$C$49+D50*$C$50+D51*$C$51+D52*$C$52+D53*$C$53+D54*$C$54+D55*$C$55+D56*$C$56+D57*$C$57+D58*$C$58+D59*$C$59+D60*$C$60+D61*$C$61+D62*$C$62+D63*$C$63+D64*$C$64+D65*$C$65","v":0},0,0,0,0,0,0,0,0,0,0,0,0,0,0,0,0,0,0,0,0,0,0,0,0,0,0,0,0,0,0]